Workbook

Sheet RR
A1: Unit | B1: Tenant | C1: Status | D1: Beds | E1: Rooms | F1: LXP | G1: Monthly Rent | H1: Annual Rent | L1: Monthly Rent | M1: Annual Rent
A2: 1Front | B2: Occupied | C2: FM | D2: 1 | E2: =D2+2 -> 3 | F2: 2026-09-30 | G2: 1395 | H2: =G2*12 -> 16740 | K2: Residential | L2: =G8-L3 -> 7249.25 | M2: =L2*12 -> 86991
A3: 1Back | B3: Occupied | C3: FM | D3: 2 | E3: 4 | F3: 2026-09-30 | G3: =17676/12 -> 1473 | H3: =G3*12 -> 17676 | K3: Residential Vacant | L3: =G6 -> 1200 | M3: =L3*12 -> 14400
A4: 2Floor | B4: Occupied | C4: FM | D4: 5 | E4: 7 | F4: 2026-09-30 | G4: =28440/12 -> 2370 | H4: 28440 | L4: =SUM(L2:L3) -> 8449.25 | M4: =SUM(M2:M3) -> 101391
A5: Basement | B5: Occupied | C5: FM | D5: 3 | E5: 5 | F5: 2026-09-30 | G5: =16335/12 -> 1361.25 | H5: 16335
A6: 1 | B6: Vacant | C6: FM | D6: 0 | E6: 2 | F6: MTM | G6: 1200 | H6: 14400 | K6: 2 | L6: =COUNTIF(E:E,K6) -> 2 | M6: =L6*K6 -> 4
A7: 2 | B7: Occupied | C7: FM | D7: 0 | E7: 2 | F7: MTM | G7: =7800/12 -> 650 | H7: 7800 | K7: 3 | L7: =COUNTIF(E:E,K7) -> 1 | M7: =L7*K7 -> 3
A8: Total | E8: =SUM(E2:E7) -> 23 | G8: =SUM(G2:G7) -> 8449.25 | H8: =SUM(H2:H7) -> 101391 | K8: 4 | L8: =COUNTIF(E:E,K8) -> 1 | M8: 4
K9: 5 | L9: =COUNTIF(E:E,K9) -> 1 | M9: 5
K10: 7 | L10: =COUNTIF(E:E,K10) -> 1 | M10: 7
L11: =SUM(L6:L10) -> 6 | M11: =SUM(M6:M10) -> 23
K13: Avg Rent/Unit | L13: =L4/L11 -> 1408.208333
K14: Avg Rent/Room | L14: =L4/M11 -> 367.3586957
